Cogmind - Beta 16 @@@ ROGUE MODE // 2026.01.28 @ 16:58:30 Player: Merc Result: Destroyed by G-47 Trooper with Particle Gun Performance ------------- Evolutions (2) 1000 Regions Visited (4) 800 Robots Destroyed (77) 385 Value Destroyed (2212) 2212 Prototype IDs (2) 40 Alien Tech Used (0) 0 Bonus (352) 352 TOTAL SCORE: 4789 Bonus ------- High Alert Combat Kills 247 Follower Combat Kills 105 Cogmind --------- Core Integrity 0/550 Matter 186/300 Energy 100/100 System Corruption 1% Temperature Cool (18) Movement Core (450) Ox8 Location -8/Materials Parts ------- > --- POWER (1) -------- (None) > --- PROPULSION (4) --- (None) > --- UTILITY (4) ------ Large Storage Unit ECM Suite > --- WEAPON (2) ------- Heavy Flail > --- INVENTORY (15) --- Light Nuclear Core Hybrid Deuterium Engine Hybrid Deuterium Engine Improved Aluminum Leg Graphene Brace Hacking Suite Heavy Particle Cannon Light Cannon Assault Cannon Peak State ------------ > --- POWER ------------ Reinforced Deuterium Engine > --- PROPULSION ------- Advanced Treads Advanced Treads Advanced Treads Advanced Treads > --- UTILITY ---------- Improved Heat Sink Large Storage Unit Large Matter Pod Improved Light Armor Plating > --- WEAPON ----------- Heavy Particle Cannon Heavy Rocket Launcher > --- INVENTORY -------- Light Nuclear Core Hybrid Deuterium Engine Hybrid Deuterium Engine Advanced Treads Heat Sink ECM Suite Graphene Brace Hacking Suite Light Cannon Assault Cannon Mini Grenade Launcher Improved Grenade Launcher Heavy Rocket Launcher Heavy Flail [Rating: 35] Favorites ----------- Power Light Nuclear Core Engine Reinforced Deuterium Engine Power Core Light Nuclear Core Propulsion Aluminum Leg Treads Advanced Treads Leg Aluminum Leg Utility Large Storage Unit Device ECM Suite Storage Large Storage Unit Protection Improved Light Armor Plating Weapon Mini Grenade Launcher Energy Gun Improved Medium Laser Energy Cannon Heavy Particle Cannon Ballistic Gun Improved Assault Rifle Ballistic Cannon Light Cannon Launcher Mini Grenade Launcher Impact Weapon Heavy Flail Build | -11 -10 -9 -9 -8 ------- Run | Yrd Mat Mat Min Mat Slots Evolved 4 | . . 2 . 2 Power . | . . . . . Propulsion 2 | . . 2 . . Utility 2 | . . . . 2 Weapon . | . . . . . Parts Attached 48 | 6 5 8 . 29 Power 6 | 1 2 1 . 2 Engine 5 | 1 1 1 . 2 Core 1 | . 1 . . . Reactor . | . . . . . Propulsion 18 | 2 . 4 . 12 Treads 6 | . . . . 6 Leg 12 | 2 . 4 . 6 Wheel . | . . . . . Hover . | . . . . . Flight . | . . . . . Utility 8 | 1 1 1 . 5 Device 3 | . 1 . . 2 Storage 3 | 1 . 1 . 1 Processor . | . . . . . Hackware . | . . . . . Protection 2 | . . . . 2 Artifact . | . . . . . Weapon 16 | 2 2 2 . 10 Energy Gun 3 | 2 . 1 . . Energy Cannon 1 | . . . . 1 Ballistic Gun 1 | . . . . 1 Ballistic Cannon 4 | . 1 . . 3 Launcher 6 | . 1 1 . 4 Special Weapon . | . . . . . Impact Weapon 1 | . . . . 1 Slashing Weapon . | . . . . . Piercing Weapon . | . . . . . Special Melee Weapon . | . . . . . Unidentified Prototypes 2 | . . 1 . 1 Parts Lost 17 | . . . . 17 Power 1 | . . . . 1 Propulsion 7 | . . . . 7 Utility 4 | . . . . 4 Weapon 5 | . . . . 5 Highest Loss Streak 9 | . . . . 9 To Critical Strikes . | . . . . . Average Backups 10 | . 6 10 13 11 Power 2 | . 1 1 2 2 Propulsion 3 | . 2 3 6 2 Utility 1 | . 1 2 2 2 Weapon 2 | . . 2 3 4 Tool/Special . | . . . . . Unused Backups 13 | . 3 1 . 9 Power 1 | . . . . 1 Propulsion 7 | . 2 . . 5 Utility 4 | . 1 1 . 2 Weapon 1 | . . . . 1 Tool/Special . | . . . . . Average Slot Usage (%) 94 | . 92 99 100 91 Engine 5 | . 2 9 . 7 Core 5 | . 11 1 11 . Treads 7 | . . . . 18 Leg 27 | . 28 43 44 14 Device 10 | . 8 11 11 11 Storage 14 | . 14 11 11 17 Protection 1 | . . . . 4 Energy Gun 4 | . 7 2 11 . Energy Cannon 2 | . . . . 6 Ballistic Cannon 3 | . 6 8 . 2 Launcher 10 | . 13 11 11 7 Peak Build Rating 35 | 6 9 18 18 35 Average Rating 18 | 4 8 14 18 26 On Entrance 10 | . 6 9 18 18 Avg Prop Armor Cover (%) . | . . . . . Naked Turns . | . . . . . Heaviest Build 55 | 13 18 33 31 55 Greatest Support 88 | 20 20 46 46 88 Greatest Overweight (x) 10 | 2 . . . 10 Average Overweight (x) . | . . . . . Largest Inventory Capacity 15 | 8 8 15 15 15 Average Capacity 13 | 7 8 14 15 15 Most Carried 15 | 1 8 14 13 15 Average Carried 10 | . 6 10 13 11 Final Capacity 15 | 8 8 15 15 15 Final Carried 13 | 1 8 13 13 9 Class Distribution -------------------- 100% | Mutant Dominant Class ---------------- Mutant | -10/Materials Mutant | -9/Materials Mutant | -9/Mines Mutant | -8/Materials Resources | -11 -10 -9 -9 -8 ----------- Run | Yrd Mat Mat Min Mat Matter Collected 1634 | 164 244 289 . 937 Remotely . | . . . . . Salvage Created 1461 | . 353 278 . 830 Parts 117 | . 23 26 . 68 Haulers Intercepted 3 | . . 2 . 1 Recyclers Shooed 1 | . 1 . . . Parts Field Recycled . | . . . . . Retrieved Matter . | . . . . . Parts Self-Destructed . | . . . . . Prevented . | . . . . . Parts Restored . | . . . . . Kills | -11 -10 -9 -9 -8 ------- Run | Yrd Mat Mat Min Mat Combat Hostiles Destroyed 48 | . 10 11 . 27 Melee 1 | . . . . 1 Guns 1 | . 1 . . . Cannons 16 | . . 3 . 13 AOE 29 | . 9 8 . 12 Classes Destroyed 12 | . 5 4 . 3 Worker 7 | . 2 . . 5 Builder 9 | . . 1 . 8 Tunneler 1 | . 1 . . . Hauler 3 | . . 2 . 1 Recycler 2 | . 1 1 . . Operator 2 | . . . . 2 Watcher 5 | . 1 2 . 2 Swarmer 11 | . . 7 . 4 Grunt 26 | . 10 1 . 15 Sentry 8 | . . 3 . 5 Hunter 2 | . . . . 2 Heavy 1 | . . . . 1 Best Kill Streak 12 | . 5 8 . 12 Combat Bots Only 5 | . 4 5 . 4 Max Kills in Single Turn 8 | . 3 4 . 8 Gunslinging . | . . . . . Exploded 4 | . 2 4 . 3 Melee 1 | . . . . 1 Uniques/NPCs Destroyed . | . . . . . Combat | -11 -10 -9 -9 -8 -------- Run | Yrd Mat Mat Min Mat Hostile Shots Fired 322 | . 19 46 . 257 Missed 98 | . 9 16 . 73 Hits 224 | . 10 30 . 184 Projectile 224 | . 10 30 . 184 Critical Strikes 11 | . . 1 . 10 Damage Taken 3822 | . 131 422 . 3269 Core 629 | . 35 40 . 554 Absorbed by Shields . | . . . . . Regen/Repaired (Parts) 180 | . 61 . . 119 Core Remaining (%) 92 | 100 86 . 90 . Volleys Fired 181 | . 34 33 3 111 Largest 2 | . 2 2 1 2 Hottest 114 | . 80 60 56 114 Shots Fired 228 | . 40 35 3 150 Gun 24 | . 21 1 2 . Cannon 140 | . . 26 . 114 Launcher 64 | . 19 8 1 36 Special . | . . . . . Kinetic 56 | . . 26 . 30 Thermal 108 | . 21 1 2 84 Explosive 64 | . 19 8 1 36 Electromagnetic . | . . . . . Robot Hit Streak 8 | . 5 5 . 8 Robot Miss Streak 5 | . 5 2 . 4 Penetration Max . | . . . . . Secondary Targets . | . . . . . Shots Hit Robots 125 | . 21 18 . 86 Core Hits 124 | . 27 23 1 73 Critical Kills 1 | . . . . 1 Critical Parts Destroyed 1 | . . . . 1 Critical Strikes 4 | . . 1 . 3 Meltdown 1 | . . . . 1 Blast 2 | . . 1 . 1 Smash 1 | . . . . 1 Melee Attacks 10 | . . . . 10 Impact 10 | . . . . 10 Slashing . | . . . . . Piercing . | . . . . . Sneak Attacks . | . . . . . Combat Hostiles . | . . . . . Follow-up Attacks . | . . . . . Damage Inflicted 7785 | . 1302 1025 4 5454 Guns 155 | . 138 17 . . Cannons 1845 | . . 298 . 1547 Explosions 5366 | . 1164 710 . 3492 Melee 397 | . . . . 397 Ramming 22 | . . . 4 18 Kinetic 670 | . . 298 . 372 Thermal 2146 | . 138 17 . 1991 Explosive 4550 | . 1164 710 . 2676 Electromagnetic . | . . . . . Impact 397 | . . . . 397 Slashing . | . . . . . Piercing . | . . . . . Highest Corruption 1 | . . . . 1 Average Corruption 1 | . . . . 1 Corruption Purged . | . . . . . Corruption Blocked . | . . . . . Effects 1 | . . . . 1 Message Errors 1 | . . . . 1 Overload Shots . | . . . . . Overflow Damage 367 | . . 65 . 302 Projectiles . | . . . . . Explosions 320 | . . 65 . 255 Melee 47 | . . . . 47 Knockbacks 11 | . . 1 . 10 Impact 4 | . . . . 4 Kinetic 5 | . . 1 . 4 Secondary 2 | . . . . 2 Self-Inflicted Damage 271 | . 19 28 . 224 Shots 8 | . 1 1 . 6 Rammed . | . . . . . Targets Rammed 2 | . . . 1 1 Kicked 2 | . . . 1 1 Crushed . | . . . . . Highest Temperature 403 | . 84 12 28 403 Average Temperature 82 | . 23 4 16 103 Received Heat Transfer 1527 | . 63 123 . 1341 Effects 3 | . . . . 3 Interference 1 | . . . . 1 Matter Decay 1 | . . . . 1 Damage (minor) 1 | . . . . 1 Siege Activations . | . . . . . Martial Activations . | . . . . . Shielding Activations . | . . . . . Robots Disrupted . | . . . . . Combat Hostiles . | . . . . . Robots Corrupted . | . . . . . Combat Hostiles . | . . . . . Parts Fried . | . . . . . Impact Corruptions 1 | . . . . 1 Robots Melted 1 | . . . . 1 Combat Hostiles 1 | . . . . 1 Parts Melted 5 | . . . . 5 Heat Transferred 2783 | . 407 37 . 2339 Parts Sabotaged . | . . . . . Parts Stolen . | . . . . . Parts Stripped . | . . . . . Power Chain Reactions . | . . . . . Alert | -11 -10 -9 -9 -8 ------- Run | Yrd Mat Mat Min Mat Maximum Alert Level 3 | . 1 1 . 3 Low Security (%) 52 | 100 58 60 100 25 Level 1 22 | . 41 39 . 16 Level 2 18 | . . . . 42 Level 3 6 | . . . . 15 Level 4 . | . . . . . Level 5 . | . . . . . High Security . | . . . . . Max Security . | . . . . . Peak Influence 913 | . 259 323 102 913 Initial 99 | . . 54 99 . Average 247 | . 159 172 29 420 Influence Increases 2408 | . 406 406 23 1573 Destroy 0b10 Robot/C 1020 | . 200 220 . 600 Destroy 0b10 Robot/NC 160 | . 40 30 . 90 Destroy Leader 246 | . 42 58 . 146 Allied During Kill 61 | . . . . 61 Successful Hack 30 | . 13 10 . 7 Disable Machine 210 | . 15 30 15 150 Anti-Garrison Action 150 | . . . . 150 Destroy Structure 486 | . 81 58 8 339 Partial Spotted 30 | . . . . 30 Lose Combat Pursuer 15 | . 15 . . . Influence Decreases 1531 | . 276 282 277 696 Entered New Map 231 | . . 76 155 . Time Decay 1030 | . 276 206 122 426 Lost Part 170 | . . . . 170 Lost Ally 100 | . . . . 100 Squads Dispatched 10 | . 1 . . 9 Investigation . | . . . . . Extermination . | . . . . . Reinforcement 5 | . 1 . . 4 Assault 3 | . . . . 3 Garrison 2 | . . . . 2 Intercept . | . . . . . Searches Triggered . | . . . . . Construction Impeded 1 | . . . . 1 Haulers Reinforced . | . . . . . Active Scanning Responses . | . . . . . Cargo Convoy Interrupts . | . . . . . Stealth | -11 -10 -9 -9 -8 --------- Run | Yrd Mat Mat Min Mat Distress Signals 5 | . 2 2 . 1 Communications Jammed . | . . . . . Distress Signals . | . . . . . Times Spotted 80 | . 19 18 . 43 Peak Tracking Total 6 | . 6 5 . 5 Tactical Retreats 5 | . 1 2 . 2 ECM-based Alert Blocks 5 | . . 2 . 3 Traps | -11 -10 -9 -9 -8 ------- Run | Yrd Mat Mat Min Mat Traps Triggered . | . . . . . Indirectly . | . . . . . Trap Hack Attempts . | . . . . . Triggered . | . . . . . Disarmed . | . . . . . Reprogrammed . | . . . . . Reused . | . . . . . Traps Extracted . | . . . . . Installed . | . . . . . Triggered . | . . . . . Machines | -11 -10 -9 -9 -8 ---------- Run | Yrd Mat Mat Min Mat Machines Disabled 15 | . 1 2 1 11 Max in Single Turn 3 | . 1 1 1 3 Garrison Access 1 | . . . . 1 Machines Repaired . | . . . . . Machines Dismantled . | . . . . . Machines Sabotaged . | . . . . . Overloaded Fab Kills . | . . . . . Hacking | -11 -10 -9 -9 -8 --------- Run | Yrd Mat Mat Min Mat Machines Accessed 6 | . 2 2 . 2 Terminals 4 | . 1 2 . 1 Fabricators . | . . . . . Repair Stations 2 | . 1 . . 1 Recycling Units . | . . . . . Scanalyzers . | . . . . . Garrison Access . | . . . . . Total Hacks 21 | . 9 7 . 5 Successful 15 | . 7 4 . 4 Failed 6 | . 2 3 . 1 Catastrophic 2 | . 1 . . 1 Database Lockouts . | . . . . . Manual . | . . . . . Terminals 13 | . 4 7 . 2 Fabricators . | . . . . . Repair Stations 8 | . 5 . . 3 Recycling Units . | . . . . . Scanalyzers . | . . . . . Garrison Access . | . . . . . Terminal Hacks 8 | . 3 4 . 1 Record 4 | . 2 1 . 1 Robot Analysis 1 | . . 1 . . Branch Access Points 1 | . 1 . . . Zone Layout 2 | . . 2 . . Fabricator Hacks . | . . . . . Repair Station Hacks 7 | . 4 . . 3 Scan Component 4 | . 2 . . 2 Repair 3 | . 2 . . 1 Recycling Unit Hacks . | . . . . . Scanalyzer . | . . . . . Garrison Access Hacks . | . . . . . Unauthorized Hacks . | . . . . . Terminals . | . . . . . Fabricators . | . . . . . Repair Stations . | . . . . . Recycling Units . | . . . . . Scanalyzers . | . . . . . Garrison Access . | . . . . . Data Cores Recovered . | . . . . . Used . | . . . . . Hacking Detections 5 | . 2 1 . 2 Full Trace Events 2 | . 1 . . 1 Feedback Events 1 | . . . . 1 Corruption 1 | . . . . 1 Feedback Blocked . | . . . . . Robot Schematics Acquired . | . . . . . Robots Built . | . . . . . Authchips . | . . . . . Time . | . . . . . Total Robot Build Rating . | . . . . . Part Schematics Acquired . | . . . . . Parts Built . | . . . . . Authchips . | . . . . . Time . | . . . . . Total Part Build Rating . | . . . . . Part Studies Acquired . | . . . . . Parts Repaired 3 | . 2 . . 1 Time 102 | . 64 . . 38 Parts Recycled . | . . . . . Recycled Matter . | . . . . . Retrieved Matter . | . . . . . Retrieved Components . | . . . . . Parts Scanalyzed . | . . . . . Part Schematics Acquired . | . . . . . Parts Damaged . | . . . . . Bothacking | -11 -10 -9 -9 -8 ------------ Run | Yrd Mat Mat Min Mat Used RIF Installer . | . . . . . Robots Hacked . | . . . . . Non-combat . | . . . . . Combat . | . . . . . Robot Hacks Applied . | . . . . . Relay Couplers Released 3 | . . . . 3 Machine Destruction 3 | . . . . 3 Fabnet Peak Effective % . | . . . . . Robots Rewired . | . . . . . Allies Hacked . | . . . . . Hacks Repelled . | . . . . . Allies | -11 -10 -9 -9 -8 -------- Run | Yrd Mat Mat Min Mat Total Allies 5 | . . . 5 . Largest Group 5 | . . . 5 5 Highest-Rated Group 79 | . . . 79 79 Highest-Rated Ally 31 | . . . 31 31 Total Orders . | . . . . . Ally Attacks 34 | . . . . 34 Total Damage 398 | . . . . 398 Kills 3 | . . . . 3 Allies Corrupted . | . . . . . Allies Melted . | . . . . . Intel | -11 -10 -9 -9 -8 ------- Run | Yrd Mat Mat Min Mat Active Infowar (turns) 1544 | . 388 423 497 236 ECM 1544 | . 388 423 497 236 Robot Analysis Total 1 | . . 1 . . Derelict Logs Recovered 1 | . . . 1 . Drone Launches . | . . . . . Drone Recoveries . | . . . . . Exploration | -11 -10 -9 -9 -8 ------------- Run | Yrd Mat Mat Min Mat Turns Passed 2844 | 44 668 423 497 1212 Spaces Moved 1627 | 29 422 269 370 537 Core 10 | 5 . . . 5 Treads 330 | . . . . 330 Legs 1287 | 24 422 269 370 202 Wheels . | . . . . . Hover . | . . . . . Flight . | . . . . . Fastest Speed 50 | 50 120 120 120 120 Average Speed 128 | 120 120 120 120 146 Slowest Speed 550 | 150 120 120 120 550 Overloaded Moves . | . . . . . Propulsion Burnouts . | . . . . . Robots Hopped . | . . . . . Potential Cave-ins 1 | . . . . 1 Cave-ins Triggered . | . . . . . Exploration Rate (%) 47 | 3 66 34 79 56 Regions Visited 4 Branch Regions 1 Pre-discovered Areas . | . . . . . Known Exits Taken . | . . . . . Unknown Exits Taken 4 | 1 1 1 1 . Scrap Searched . | . . . . . Spaces Dug . | . . . . . Terrain Destroyed 562 | . 79 64 9 410 Melee . | . . . . . Projectile 38 | . . . . 38 AOE 524 | . 79 64 9 372 Terrain Rammed . | . . . . . Walls Destroyed . | . . . . . Machines Disabled . | . . . . . Actions | -11 -10 -9 -9 -8 --------- Run | Yrd Mat Mat Min Mat Total 2125 | 35 543 332 420 795 Wait 189 | . 64 9 47 69 Move 1623 | 28 421 268 369 537 Hop . | . . . . . Pick Up 37 | 1 12 9 . 15 Fast Attach 17 | 6 3 . . 8 Attach 15 | . 1 2 . 12 Detach . | . . . . . Swap 25 | . 3 7 . 15 Drop 26 | . 5 4 . 17 Fire 181 | . 34 33 3 111 Melee 10 | . . . . 10 Ram . | . . . . . Kick 2 | . . . 1 1 Crush . | . . . . . Escape Stasis . | . . . . . Rewire . | . . . . . Trap . | . . . . . Miscellaneous . | . . . . . Route ------- -11/Scrapyard -10/Materials (discovered 3 exits: *Mat / *Min x2) -9/Materials (discovered 2 exits: [*Min x2]) -9/Mines (discovered 2 exits: *Mat x2) -8/Materials (discovered 1 exit: [*Fac]) History --------- Turn | Location | Event 9 | -11/Scrapyard | Discovered new exit (range 16) 45 | -11/Scrapyard | Entered Materials 109 | -10/Materials | Discovered new exit (range 14) 307 | -10/Materials | Build established: Mutant 311 | -10/Materials | Discovered new exit (range 15) 365 | -10/Materials | Discovered new exit (range 15) 413 | -10/Materials | Identified exit to Mines 586 | -10/Materials | Repaired Grenade Launcher 625 | -10/Materials | Repaired Lgt. Nuclear Core 713 | -10/Materials | Entered another Materials area 713 | -9/Materials | Evolved 2 slots: Propulsion x2 719 | -9/Materials | Discovered new exit (range 14) 962 | -9/Materials | Discovered new exit (range 11) 1136 | -9/Materials | Entered Mines 1277 | -9/Mines | Learned 2 Materials zone layouts 1280 | -9/Mines | Discovered new exit (range 3) 1425 | -9/Mines | Assisted by bots powering up and referring to "LRC-V3" 1524 | -9/Mines | Discovered new exit (range 9) 1633 | -9/Mines | Entered Materials 1633 | -8/Materials | Accompanied by 5 allies 1633 | -8/Materials | Evolved 2 slots: Utility x2 1638 | -8/Materials | Led the pair of lost Derelicts to an unsafe place 1932 | -8/Materials | Discovered new exit (range 15) 2136 | -8/Materials | Lost 3 allies 2540 | -8/Materials | Lost 4 parts (2u2w) 2602 | -8/Materials | Repaired Hvy. Particle Cannon 2650 | -8/Materials | Garrison activated, responded to threat 2731 | -8/Materials | Core integrity fell below 50% 2790 | -8/Materials | Lost 9 parts (1p5n2u1w) 2833 | -8/Materials | First assault squad dispatched 2837 | -8/Materials | Core integrity fell below 20% 2845 | -8/Materials | Destroyed by G-47 Trooper with Particle Gun Last Messages --------------- 02814_ Critical hit (Burn: +37). 02817_ K-01 Serf collects debris. 02821_ Acquired 2 matter. 02824_ G-50 Soldier knocked back. 02826_ G-47 Trooper knocked back. 02828_ RV,NVGSR7YBJU99SZ7MMYPKXFN5VSL/06BRY 02828_ G-47 Trooper suffers critical hit (Smash). 02828_ Destroyed Aluminum Leg. 02828_ G-47 Trooper system corrupted by crushing effect. 02828_ G-47 Trooper knocked back. 02832_ K-01 Serf collects debris. 02833_ ALERT: Unidentified disturbance in Zone 6Q, assault force dispatched. 02836_ K-01 Serf collects debris. 02836_ Critical hit (Burn: +37). 02839_ Aluminum Leg destroyed. 02842_ G-47 Trooper destroyed. 02843_ Assault Cannon destroyed. Map ----- +----------------------------------------------------+ | ?##?# ## # # | | ????# "########## # #### # # # | | ???#" ########### # ## ## / # | | ##?##[ # # ### # ## # # | | ####% # # #?### !### ########## | | ??? #?????????# #???# #?# ## # | | ?? +?????????# #???# #?# ## " # | | ? #?????????# #???# """"" !### ## """ # | | ##### ##?????????# #???# """"" ## # """ # | | ?????#+#??????????# #???# """"" # # """ # | | ?????? ???????????# #???# ? # "" # | | ??????"???????????# #???#####+###### "" # | | ??????????????????# ???? "" # | | ??????????????????# ??? + "" # | | ??????????????????? ???""""" ^" # " # | | ??????????????????????? """"" " = # # | | ??????????????????????? """"" " #####/##? | | ???????????????????????? % #?? | | ?????????????????????????? #?? | | ?????????????????????######## ### +## #?? | | ?????????????????????# ;=%% % # #?? | | ?????????????????????# ;% ## # #?? | | ?????????????????????# !"" ; %%= ####?? | | ?????????????????????# [! + =% "????? | | ?????????????????????#gi""gg##"" [ % #????? | | ?????????????????????#=%[@ #??? # "????? | | ?????????????????????########?????## #????? | | ?????????????????????????????????????# !#????? | | ?????????????????????????????????????# #????? | | ??????????????????????????????????????######????? | | | | | | | | | | | | | | | | | | | | | | | | | | | | | | | | | | | | | | | | | +----------------------------------------------------+ Best States ------------- Heat Dissipation 45 Energy Generation 16 Energy Capacity 800 Matter Stores 450 Matter Capacity 450 Sight Range 16 Terrain Scan Density 10 ECM Strength 1 Armor Coverage 150 Evasion (%) 55 Recoil Reduction 4 Item Schematics ----------------- None Robot Schematics ------------------ None Fabricated ------------ Nothing Repaired ---------- Grenade Launcher | 33% | -10/Materials Lgt. Nuclear Core | 58% | -10/Materials Hvy. Particle Cannon | 8% | -8/Materials Studied --------- None Alien Tech Used ----------------- None Achievements -------------- The More The Merrier Challenges ------------ None Game ------ Seed ThermicZhirovVibroblade Manual? 0 Play Time 00:53:59 Cumulative 7.9 hours Start 2026.01.28 @ 16:01:19 End 2026.01.28 @ 16:58:30 Sessions 1 Manual Loads 0 Difficulty Rogue Special Mode None Game No. 8 Rogue 8 Adventurer 0 Explorer 0 Win Type - Total 0 Types 0/0/0/0/0/0/0/0/0/0 Lore% 4 Gallery% 10 Achievement% 11 Wizard Run 0 Options --------- Layout 1 ASCII 0 Keyboard 0 Movement Mouse Keybinds 1 Fullscreen 1 Font 24/Smallcaps Map View 50x35 Zoom Use 0% Tactical HUD 1 Map Filters NONE Filters NONE Steam 1 RUN: 20b99635-7987-45f7-a6a0-4eb7c9b0848a